[Event "*** Titled Tuesday Blitz"]
[Site "Chess.com"]
[Date "2020.11.10"]
[Round "4"]
[White "Gerodot71"]
[Black "kingofthenil"]
[Result "0-1"]
[WhiteElo "2488"]
[BlackElo "2677"]
[TimeControl "180+1"]
[EndTime "10:43:18 PST"]
[Termination "kingofthenil won by resignation"]

1. d4 {[%clk 0:03:00.9]} 1... Nf6 {[%clk 0:02:31.6]} 2. c4 {[%clk 0:03:00.7]}
2... c5 {[%clk 0:02:31.6]} 3. d5 {[%clk 0:03:00.8]} 3... e6 {[%clk 0:02:32.3]}
4. Nf3 {[%clk 0:02:57.4]} 4... exd5 {[%clk 0:02:33.2]} 5. cxd5 {[%clk
0:02:58.2]} 5... g6 {[%clk 0:02:32.5]} 6. h3 {[%clk 0:02:57.4]} 6... Bg7 {[%clk
0:02:32.2]} 7. Nc3 {[%clk 0:02:57.1]} 7... O-O {[%clk 0:02:31.9]} 8. Bf4 {[%clk
0:02:57.6]} 8... d6 {[%clk 0:02:31.8]} 9. e3 {[%clk 0:02:58.1]} 9... Na6 {[%clk
0:02:31.6]} 10. Be2 {[%clk 0:02:53.2]} 10... Nc7 {[%clk 0:02:28.3]} 11. O-O
{[%clk 0:02:51.6]} 11... Rb8 {[%clk 0:02:20.3]} 12. a4 {[%clk 0:02:44.8]} 12...
b6 {[%clk 0:02:20]} 13. Nb5 {[%clk 0:02:14.3]} 13... Nxb5 {[%clk 0:02:03.3]} 14.
axb5 {[%clk 0:02:15.2]} 14... Ne4 {[%clk 0:01:44.6]} 15. Nd2 {[%clk 0:01:58.2]}
15... Re8 {[%clk 0:01:41.7]} 16. Rxa7 {[%clk 0:01:38.9]} 16... Bxb2 {[%clk
0:01:19.4]} 17. Nxe4 {[%clk 0:01:36.5]} 17... Rxe4 {[%clk 0:01:20.3]} 18. Qc2
{[%clk 0:01:36.1]} 18... Rxf4 {[%clk 0:01:06.6]} 19. exf4 {[%clk 0:01:35.7]}
19... Bd4 {[%clk 0:01:06.5]} 20. Bg4 {[%clk 0:01:21.9]} 20... Bxg4 {[%clk
0:00:53.5]} 21. hxg4 {[%clk 0:01:22.8]} 21... Qf6 {[%clk 0:00:46]} 22. Qe4
{[%clk 0:01:17.8]} 22... h6 {[%clk 0:00:35.5]} 23. g3 {[%clk 0:01:13.7]} 23...
Rc8 {[%clk 0:00:26.8]} 24. Rc1 {[%clk 0:01:02.5]} 24... c4 {[%clk 0:00:26.1]}
25. Ra4 {[%clk 0:01:01.6]} 25... Rc7 {[%clk 0:00:21.4]} 26. Raxc4 {[%clk
0:01:00.1]} 26... Bc5 {[%clk 0:00:21.6]} 27. Ra4 {[%clk 0:00:57.4]} 27... Re7
{[%clk 0:00:21.7]} 28. Qf3 {[%clk 0:00:55.1]} 28... Qb2 {[%clk 0:00:20.5]} 29.
Ra8+ {[%clk 0:00:37.7]} 29... Kg7 {[%clk 0:00:20.3]} 30. Qc3+ {[%clk 0:00:37]}
30... Qxc3 {[%clk 0:00:19.8]} 31. Rxc3 {[%clk 0:00:37.9]} 31... Re2 {[%clk
0:00:20.4]} 32. Rf3 {[%clk 0:00:31.3]} 32... Rd2 {[%clk 0:00:17.8]} 33. f5
{[%clk 0:00:30]} 33... Rxd5 {[%clk 0:00:01.3]} 34. fxg6 {[%clk 0:00:30.1]} 34...
Kxg6 {[%clk 0:00:02.1]} 35. Rf8 {[%clk 0:00:30.5]} 35... f6 {[%clk 0:00:01.4]}
36. Kg2 {[%clk 0:00:28.1]} 36... Bd4 {[%clk 0:00:01.4]} 37. Rd8 {[%clk
0:00:25.4]} 37... Be5 {[%clk 0:00:02.3]} 38. Rb3 {[%clk 0:00:22.5]} 38... Rc5
{[%clk 0:00:02.2]} 39. f4 {[%clk 0:00:22.2]} 39... Rc2+ {[%clk 0:00:02.9]} 40.
Kf3 {[%clk 0:00:21.9]} 40... Bd4 {[%clk 0:00:03.3]} 41. Rd7 {[%clk 0:00:18.5]}
41... Bc5 {[%clk 0:00:04.2]} 42. Ke4 {[%clk 0:00:15.1]} 42... Re2+ {[%clk
0:00:03.8]} 43. Kd5 {[%clk 0:00:15.5]} 43... h5 {[%clk 0:00:02.3]} 44. gxh5+
{[%clk 0:00:14.8]} 44... Kxh5 {[%clk 0:00:03.2]} 45. Rg7 {[%clk 0:00:14.2]}
45... Kh6 {[%clk 0:00:02.6]} 46. Rg8 {[%clk 0:00:14.1]} 46... Kh7 {[%clk
0:00:02.9]} 47. Rg4 {[%clk 0:00:14.1]} 47... Re1 {[%clk 0:00:01.3]} 48. f5
{[%clk 0:00:12]} 48... Kh6 {[%clk 0:00:01.7]} 49. Rg6+ {[%clk 0:00:11.8]} 49...
Kh5 {[%clk 0:00:01.9]} 50. Rxf6 {[%clk 0:00:12]} 50... Kg5 {[%clk 0:00:02.8]}
51. Rf8 {[%clk 0:00:11.4]} 51... Re5+ {[%clk 0:00:02.5]} 52. Kc6 {[%clk
0:00:11.4]} 52... Rxf5 {[%clk 0:00:02.5]} 53. Rxf5+ {[%clk 0:00:12.3]} 53...
Kxf5 {[%clk 0:00:03.4]} 54. Kd5 {[%clk 0:00:10.3]} 54... Kg4 {[%clk 0:00:04.3]}
55. Rd3 {[%clk 0:00:10]} 55... Kg5 {[%clk 0:00:04.4]} 56. Ke4 {[%clk 0:00:10.2]}
56... Kg4 {[%clk 0:00:05.3]} 57. Rf3 {[%clk 0:00:08.6]} 57... d5+ {[%clk
0:00:03.8]} 58. Kxd5 {[%clk 0:00:07.8]} 58... Kxf3 {[%clk 0:00:04.7]} 59. g4
{[%clk 0:00:07.7]} 59... Kxg4 {[%clk 0:00:05.1]} 0-1

[Event "*** Titled Tuesday Blitz"]
[Site "Chess.com"]
[Date "2020.11.10"]
[Round "4"]
[White "ZverevLev"]
[Black "lacafi"]
[Result "0-1"]
[WhiteElo "2258"]
[BlackElo "2127"]
[TimeControl "180+1"]
[EndTime "10:43:19 PST"]
[Termination "lacafi won on time"]

1. h3 {[%clk 0:02:55.6]} 1... d5 {[%clk 0:02:58.5]} 2. d3 {[%clk 0:02:55.4]}
2... g6 {[%clk 0:02:58.9]} 3. g4 {[%clk 0:02:53.1]} 3... Bg7 {[%clk 0:02:59.3]}
4. Bg2 {[%clk 0:02:51.6]} 4... c5 {[%clk 0:02:58.8]} 5. Nd2 {[%clk 0:02:48.1]}
5... Nc6 {[%clk 0:02:59.1]} 6. Ngf3 {[%clk 0:02:43.9]} 6... e5 {[%clk
0:02:58.2]} 7. e4 {[%clk 0:02:42.5]} 7... d4 {[%clk 0:02:55.6]} 8. a3 {[%clk
0:02:39]} 8... Nge7 {[%clk 0:02:56]} 9. Nb3 {[%clk 0:02:27.7]} 9... b6 {[%clk
0:02:55.8]} 10. Bd2 {[%clk 0:02:24.2]} 10... O-O {[%clk 0:02:54.7]} 11. Qe2
{[%clk 0:02:19.4]} 11... a5 {[%clk 0:02:54]} 12. a4 {[%clk 0:02:18.1]} 12... Nb4
{[%clk 0:02:37.5]} 13. Bxb4 {[%clk 0:02:14.2]} 13... axb4 {[%clk 0:02:37.2]} 14.
Nbd2 {[%clk 0:02:12.4]} 14... Bd7 {[%clk 0:02:35.7]} 15. b3 {[%clk 0:02:10.8]}
15... b5 {[%clk 0:02:32]} 16. O-O {[%clk 0:02:08.1]} 16... bxa4 {[%clk 0:02:32]}
17. bxa4 {[%clk 0:02:08.4]} 17... Rxa4 {[%clk 0:02:28.6]} 18. Nc4 {[%clk
0:02:05.1]} 18... f6 {[%clk 0:02:25.2]} 19. Rxa4 {[%clk 0:02:01.3]} 19... Bxa4
{[%clk 0:02:24.9]} 20. Ra1 {[%clk 0:02:02.2]} 20... Bb5 {[%clk 0:02:24.3]} 21.
Nfd2 {[%clk 0:02:00]} 21... Nc6 {[%clk 0:01:59.2]} 22. g5 {[%clk 0:01:53.4]}
22... fxg5 {[%clk 0:01:47.9]} 23. Qg4 {[%clk 0:01:51.4]} 23... Qe7 {[%clk
0:01:33.5]} 24. Nb6 {[%clk 0:01:48.4]} 24... Qf7 {[%clk 0:01:07.8]} 25. Nf3
{[%clk 0:01:41.2]} 25... h6 {[%clk 0:01:04.5]} 26. Nd7 {[%clk 0:01:26.6]} 26...
h5 {[%clk 0:00:54.9]} 27. Qxg5 {[%clk 0:01:24.3]} 27... Qxd7 {[%clk 0:00:54.9]}
28. Qxg6 {[%clk 0:01:23.3]} 28... Qf7 {[%clk 0:00:50.7]} 29. Qg5 {[%clk
0:01:16.1]} 29... c4 {[%clk 0:00:46.8]} 30. Nh4 {[%clk 0:01:02.9]} 30... Qxf2+
{[%clk 0:00:37.7]} 31. Kh1 {[%clk 0:00:58.9]} 31... Qf6 {[%clk 0:00:34.8]} 32.
Qxh5 {[%clk 0:00:54.6]} 32... cxd3 {[%clk 0:00:21.7]} 33. Nf5 {[%clk 0:00:48.1]}
33... dxc2 {[%clk 0:00:20.5]} 34. Bf3 {[%clk 0:00:44.7]} 34... d3 {[%clk
0:00:19.8]} 35. Rg1 {[%clk 0:00:41.8]} 35... Rf7 {[%clk 0:00:17.1]} 36. Bd1
{[%clk 0:00:11.5]} 36... c1=Q {[%clk 0:00:14.3]} 37. Bb3 {[%clk 0:00:10.8]}
37... Qxg1+ {[%clk 0:00:14.2]} 38. Kxg1 {[%clk 0:00:11.3]} 38... Nd8 {[%clk
0:00:12.1]} 39. Bxf7+ {[%clk 0:00:07.2]} 39... Nxf7 {[%clk 0:00:11.7]} 40. h4
{[%clk 0:00:05.9]} 40... d2 {[%clk 0:00:11.1]} 41. Qd1 {[%clk 0:00:05.5]} 41...
Qg6+ {[%clk 0:00:09.4]} 42. Kh2 {[%clk 0:00:05.9]} 42... Qf6 {[%clk 0:00:03.2]}
43. Qxd2 {[%clk 0:00:02.8]} 43... Nh6 {[%clk 0:00:03.8]} 44. Nxh6+ {[%clk
0:00:01.8]} 44... Qxh6 {[%clk 0:00:03.6]} 45. Qd5+ {[%clk 0:00:02]} 45... Kh7
{[%clk 0:00:03.8]} 46. Qxb5 {[%clk 0:00:02.9]} 46... Qxh4+ {[%clk 0:00:03.6]}
47. Kg2 {[%clk 0:00:02.5]} 47... Qxe4+ {[%clk 0:00:04.2]} 48. Kh3 {[%clk
0:00:02.5]} 48... Qf5+ {[%clk 0:00:04.2]} 49. Kh2 {[%clk 0:00:02.9]} 49... Qf4+
{[%clk 0:00:04.5]} 50. Kg2 {[%clk 0:00:02.7]} 50... Kg6 {[%clk 0:00:05]} 51. Kg1
{[%clk 0:00:01.9]} 51... Bf6 {[%clk 0:00:05]} 52. Kh1 {[%clk 0:00:02.2]} 52...
Kf5 {[%clk 0:00:05.5]} 53. Qe8 {[%clk 0:00:02.3]} 53... Qe4+ {[%clk 0:00:05.6]}
54. Kg1 {[%clk 0:00:01.8]} 54... Qg4+ {[%clk 0:00:05]} 55. Kh1 {[%clk
0:00:02.7]} 55... e4 {[%clk 0:00:04.4]} 0-1

[Event "*** Titled Tuesday Blitz"]
[Site "Chess.com"]
[Date "2020.11.10"]
[Round "4"]
[White "Trickov"]
[Black "enriquetejedor"]
[Result "0-1"]
[WhiteElo "2329"]
[BlackElo "2490"]
[TimeControl "180+1"]
[EndTime "10:43:21 PST"]
[Termination "enriquetejedor won on time"]

1. d4 {[%clk 0:02:58.9]} 1... Nf6 {[%clk 0:03:00.1]} 2. Nf3 {[%clk 0:02:58]}
2... d5 {[%clk 0:02:59.9]} 3. c4 {[%clk 0:02:55.5]} 3... dxc4 {[%clk 0:02:57.9]}
4. Qa4+ {[%clk 0:02:54.5]} 4... c6 {[%clk 0:02:50.1]} 5. Qxc4 {[%clk 0:02:52.8]}
5... Bf5 {[%clk 0:02:40.3]} 6. Nc3 {[%clk 0:02:46.6]} 6... e6 {[%clk 0:02:38.4]}
7. Nh4 {[%clk 0:02:34.6]} 7... Bg6 {[%clk 0:02:06]} 8. Nxg6 {[%clk 0:02:20.2]}
8... hxg6 {[%clk 0:01:59.5]} 9. e4 {[%clk 0:02:20.2]} 9... Nbd7 {[%clk
0:01:47.8]} 10. Be2 {[%clk 0:02:19]} 10... Be7 {[%clk 0:01:29.8]} 11. Be3 {[%clk
0:02:17.6]} 11... Qc7 {[%clk 0:01:16]} 12. Rc1 {[%clk 0:02:02.8]} 12... Rxh2
{[%clk 0:01:00.5]} 13. Rxh2 {[%clk 0:01:50.7]} 13... Qxh2 {[%clk 0:00:58.3]} 14.
Qb3 {[%clk 0:01:48.4]} 14... Nb6 {[%clk 0:00:26.3]} 15. d5 {[%clk 0:01:26.1]}
15... exd5 {[%clk 0:00:25]} 16. exd5 {[%clk 0:01:25.2]} 16... Nfxd5 {[%clk
0:00:16.5]} 17. Nxd5 {[%clk 0:01:20.3]} 17... cxd5 {[%clk 0:00:16.8]} 18. Bxb6
{[%clk 0:01:05]} 18... axb6 {[%clk 0:00:16.3]} 19. a3 {[%clk 0:00:55.5]} 19...
Bc5 {[%clk 0:00:07.2]} 20. Qxd5 {[%clk 0:00:51.3]} 20... Kf8 {[%clk 0:00:03.5]}
21. b4 {[%clk 0:00:36.3]} 21... Qg1+ {[%clk 0:00:03]} 22. Kd2 {[%clk 0:00:36.3]}
22... Qxf2 {[%clk 0:00:03]} 23. bxc5 {[%clk 0:00:35.3]} 23... Re8 {[%clk
0:00:02.9]} 24. Qc4 {[%clk 0:00:22.3]} 24... Rd8+ {[%clk 0:00:02.4]} 25. Kc2
{[%clk 0:00:21.9]} 25... bxc5 {[%clk 0:00:02.3]} 26. Kb2 {[%clk 0:00:20.8]}
26... Qd4+ {[%clk 0:00:01.5]} 27. Qxd4 {[%clk 0:00:20.2]} 27... cxd4 {[%clk
0:00:02.4]} 28. Rc7 {[%clk 0:00:19.6]} 28... d3 {[%clk 0:00:02.6]} 29. Bd1
{[%clk 0:00:19.6]} 29... b5 {[%clk 0:00:02.8]} 30. Kc3 {[%clk 0:00:19.6]} 30...
d2 {[%clk 0:00:02.7]} 31. Rc5 {[%clk 0:00:18.2]} 31... Ra8 {[%clk 0:00:02.4]}
32. Kxd2 {[%clk 0:00:15.5]} 32... Rxa3 {[%clk 0:00:02.4]} 33. Rxb5 {[%clk
0:00:15.8]} 33... Ra2+ {[%clk 0:00:02.7]} 34. Ke3 {[%clk 0:00:15.4]} 34... Rxg2
{[%clk 0:00:02.6]} 35. Rb8+ {[%clk 0:00:15.1]} 35... Ke7 {[%clk 0:00:02.7]} 36.
Rb7+ {[%clk 0:00:15.5]} 36... Kf8 {[%clk 0:00:03.2]} 37. Rb8+ {[%clk 0:00:12.7]}
37... Ke7 {[%clk 0:00:03.4]} 38. Rb7+ {[%clk 0:00:12]} 38... Ke8 {[%clk
0:00:03.8]} 39. Rb8+ {[%clk 0:00:12.2]} 39... Kd7 {[%clk 0:00:03.8]} 40. Rb7+
{[%clk 0:00:12.3]} 40... Ke8 {[%clk 0:00:03.3]} 41. Rb8+ {[%clk 0:00:09.6]}
41... Kd7 {[%clk 0:00:03.5]} 42. Rb7+ {[%clk 0:00:09.7]} 42... Ke6 {[%clk
0:00:03.9]} 43. Bb3+ {[%clk 0:00:07.2]} 43... Kf6 {[%clk 0:00:04]} 44. Rxf7+
{[%clk 0:00:06]} 44... Kg5 {[%clk 0:00:04.2]} 45. Bd5 {[%clk 0:00:05.2]} 45...
Rg3+ {[%clk 0:00:03.3]} 46. Rf3 {[%clk 0:00:03.7]} 46... Rg4 {[%clk 0:00:03.2]}
47. Be4 {[%clk 0:00:03]} 47... Rh4 {[%clk 0:00:02.7]} 48. Rg3+ {[%clk
0:00:01.2]} 48... Kf6 {[%clk 0:00:03.1]} 49. Rxg6+ {[%clk 0:00:01.2]} 49... Kf7
{[%clk 0:00:03.6]} 0-1

[Event "*** Titled Tuesday Blitz"]
[Site "Chess.com"]
[Date "2020.11.10"]
[Round "4"]
[White "hungrycaterpillar4"]
[Black "Onischuk_V"]
[Result "1/2-1/2"]
[WhiteElo "2630"]
[BlackElo "2868"]
[TimeControl "180+1"]
[EndTime "10:43:23 PST"]
[Termination "Game drawn - insufficient material"]

1. e4 {[%clk 0:03:00.9]} 1... d6 {[%clk 0:02:59.9]} 2. d4 {[%clk 0:03:00.7]}
2... Nf6 {[%clk 0:03:00.5]} 3. Nc3 {[%clk 0:03:00.5]} 3... g6 {[%clk 0:03:01.1]}
4. Nf3 {[%clk 0:03:00.7]} 4... Bg7 {[%clk 0:03:01.3]} 5. Be2 {[%clk 0:03:01.1]}
5... O-O {[%clk 0:03:01.9]} 6. O-O {[%clk 0:03:01.7]} 6... c6 {[%clk 0:03:02.5]}
7. a4 {[%clk 0:03:01.7]} 7... Nbd7 {[%clk 0:03:03]} 8. h3 {[%clk 0:03:01.6]}
8... e5 {[%clk 0:03:02.5]} 9. dxe5 {[%clk 0:02:57.8]} 9... dxe5 {[%clk
0:03:02.5]} 10. a5 {[%clk 0:02:58.3]} 10... Qe7 {[%clk 0:03:01.3]} 11. Be3
{[%clk 0:02:53]} 11... Nc5 {[%clk 0:02:57.7]} 12. Nd2 {[%clk 0:02:51.6]} 12...
Rd8 {[%clk 0:02:57.2]} 13. Qc1 {[%clk 0:02:48.8]} 13... Ne6 {[%clk 0:02:56.9]}
14. Nc4 {[%clk 0:02:38.3]} 14... Nd4 {[%clk 0:02:56.6]} 15. Bd3 {[%clk
0:02:32.9]} 15... Nh5 {[%clk 0:02:51.3]} 16. Bg5 {[%clk 0:01:58.4]} 16... Bf6
{[%clk 0:02:50.7]} 17. h4 {[%clk 0:01:44]} 17... h6 {[%clk 0:02:26.4]} 18. Bxf6
{[%clk 0:01:37.8]} 18... Qxf6 {[%clk 0:02:26.2]} 19. Qxh6 {[%clk 0:01:33.9]}
19... Qxh4 {[%clk 0:02:22.6]} 20. Nxe5 {[%clk 0:01:27.4]} 20... Be6 {[%clk
0:02:21.1]} 21. Rae1 {[%clk 0:00:57.3]} 21... Re8 {[%clk 0:01:47.4]} 22. Nxg6
{[%clk 0:00:48.7]} 22... fxg6 {[%clk 0:01:45.7]} 23. Qxg6+ {[%clk 0:00:49.6]}
23... Ng7 {[%clk 0:01:42.8]} 24. e5 {[%clk 0:00:49.7]} 24... Bf5 {[%clk
0:01:24.4]} 25. Bxf5 {[%clk 0:00:32.9]} 25... Nxf5 {[%clk 0:01:23.5]} 26. Ne4
{[%clk 0:00:32.7]} 26... Re6 {[%clk 0:01:12.3]} 27. Nf6+ {[%clk 0:00:31.4]}
27... Kf8 {[%clk 0:01:06.3]} 28. Rd1 {[%clk 0:00:24.2]} 28... Ne7 {[%clk
0:00:59.5]} 29. Nd7+ {[%clk 0:00:18.1]} 29... Kg8 {[%clk 0:00:58.9]} 30. Nf6+
{[%clk 0:00:18.3]} 30... Kh8 {[%clk 0:00:57.6]} 31. Qf7 {[%clk 0:00:18.4]} 31...
Rxe5 {[%clk 0:00:56.2]} 32. Rd7 {[%clk 0:00:18.3]} 32... Rf5 {[%clk 0:00:36.2]}
33. Qxe7 {[%clk 0:00:06.5]} 33... Qxf6 {[%clk 0:00:35.7]} 34. Qxf6 {[%clk
0:00:06.9]} 34... Rxf6 {[%clk 0:00:35.8]} 35. Rxb7 {[%clk 0:00:07.8]} 35... Ne6
{[%clk 0:00:33.9]} 36. Re1 {[%clk 0:00:04.7]} 36... a6 {[%clk 0:00:28.4]} 37.
Re5 {[%clk 0:00:04.1]} 37... Rd8 {[%clk 0:00:22.2]} 38. f3 {[%clk 0:00:03.1]}
38... Rd1+ {[%clk 0:00:21]} 39. Kh2 {[%clk 0:00:03.7]} 39... Rd2 {[%clk
0:00:20.7]} 40. Rh5+ {[%clk 0:00:02.5]} 40... Kg8 {[%clk 0:00:20.7]} 41. Rb8+
{[%clk 0:00:02.9]} 41... Kg7 {[%clk 0:00:20.7]} 42. Rh3 {[%clk 0:00:03]} 42...
Rg6 {[%clk 0:00:19.8]} 43. Rg3 {[%clk 0:00:03.5]} 43... Nf4 {[%clk 0:00:19.4]}
44. Rxg6+ {[%clk 0:00:03.8]} 44... Kxg6 {[%clk 0:00:19.5]} 45. Kg3 {[%clk
0:00:04.4]} 45... Nxg2 {[%clk 0:00:18.5]} 46. Rb6 {[%clk 0:00:05]} 46... Ne3
{[%clk 0:00:17.2]} 47. Rxc6+ {[%clk 0:00:04.7]} 47... Kg5 {[%clk 0:00:17.7]} 48.
f4+ {[%clk 0:00:04.9]} 48... Kf5 {[%clk 0:00:18]} 49. Kf3 {[%clk 0:00:05.5]}
49... Nxc2 {[%clk 0:00:17.6]} 50. Rc5+ {[%clk 0:00:05.7]} 50... Ke6 {[%clk
0:00:17.4]} 51. Rc6+ {[%clk 0:00:06.1]} 51... Kf5 {[%clk 0:00:17.3]} 52. Rxa6
{[%clk 0:00:07]} 52... Rd3+ {[%clk 0:00:15.8]} 53. Ke2 {[%clk 0:00:07]} 53...
Rb3 {[%clk 0:00:16.1]} 54. Rb6 {[%clk 0:00:07.2]} 54... Nd4+ {[%clk 0:00:13.1]}
55. Kd2 {[%clk 0:00:07.2]} 55... Kxf4 {[%clk 0:00:11.3]} 56. Rxb3 {[%clk
0:00:03.5]} 56... Nxb3+ {[%clk 0:00:11.5]} 57. Kc3 {[%clk 0:00:04]} 57... Nxa5
{[%clk 0:00:12.1]} 58. Kb4 {[%clk 0:00:04.5]} 58... Nb7 {[%clk 0:00:12.1]} 59.
Kb5 {[%clk 0:00:04.2]} 59... Ke5 {[%clk 0:00:12.7]} 60. b4 {[%clk 0:00:04.7]}
60... Nd6+ {[%clk 0:00:13.2]} 61. Kb6 {[%clk 0:00:05.6]} 61... Kd5 {[%clk
0:00:13]} 62. Kc7 {[%clk 0:00:05.1]} 62... Kc4 {[%clk 0:00:12.3]} 63. Kxd6
{[%clk 0:00:05.1]} 63... Kxb4 {[%clk 0:00:12.9]} 1/2-1/2

[Event "*** Titled Tuesday Blitz"]
[Site "Chess.com"]
[Date "2020.11.10"]
[Round "4"]
[White "FMalexhdez"]
[Black "MVM2008"]
[Result "1-0"]
[WhiteElo "2287"]
[BlackElo "2176"]
[TimeControl "180+1"]
[EndTime "10:43:24 PST"]
[Termination "FMalexhdez won on time"]

1. e4 {[%clk 0:03:00.9]} 1... Nf6 {[%clk 0:02:56.3]} 2. e5 {[%clk 0:03:00.2]}
2... Nd5 {[%clk 0:02:56.2]} 3. d4 {[%clk 0:03:00.9]} 3... d6 {[%clk 0:02:55]} 4.
Nf3 {[%clk 0:03:01.4]} 4... Bg4 {[%clk 0:02:54.4]} 5. Be2 {[%clk 0:03:00.7]}
5... dxe5 {[%clk 0:02:51.3]} 6. Nxe5 {[%clk 0:02:53.1]} 6... Bxe2 {[%clk
0:02:51.2]} 7. Qxe2 {[%clk 0:02:52.1]} 7... e6 {[%clk 0:02:42]} 8. O-O {[%clk
0:02:51.4]} 8... Be7 {[%clk 0:02:34.7]} 9. c4 {[%clk 0:02:51.1]} 9... Nf6 {[%clk
0:02:33.7]} 10. Be3 {[%clk 0:02:49.2]} 10... O-O {[%clk 0:02:33.4]} 11. Nc3
{[%clk 0:02:48.6]} 11... c6 {[%clk 0:02:29.4]} 12. a3 {[%clk 0:02:46.3]} 12...
Nbd7 {[%clk 0:02:28.6]} 13. b4 {[%clk 0:02:44.8]} 13... a5 {[%clk 0:02:21.4]}
14. b5 {[%clk 0:02:39.7]} 14... c5 {[%clk 0:02:20.7]} 15. Nxd7 {[%clk
0:02:20.2]} 15... Nxd7 {[%clk 0:02:20.3]} 16. d5 {[%clk 0:02:20.3]} 16... Bf6
{[%clk 0:02:16.3]} 17. Rac1 {[%clk 0:02:03.9]} 17... exd5 {[%clk 0:02:15.8]} 18.
Nxd5 {[%clk 0:02:03.4]} 18... Re8 {[%clk 0:02:12.7]} 19. Rfd1 {[%clk 0:01:58]}
19... Bd4 {[%clk 0:02:09.2]} 20. Qf3 {[%clk 0:01:38.6]} 20... Ne5 {[%clk
0:02:05.7]} 21. Qg3 {[%clk 0:01:38.7]} 21... Bxe3 {[%clk 0:01:59.5]} 22. Nxe3
{[%clk 0:01:38]} 22... Qf6 {[%clk 0:01:37.2]} 23. Rd5 {[%clk 0:01:36.7]} 23...
Rad8 {[%clk 0:01:30]} 24. Rcd1 {[%clk 0:01:33.5]} 24... Rxd5 {[%clk 0:01:17.7]}
25. Nxd5 {[%clk 0:01:25.7]} 25... Qd8 {[%clk 0:01:08.8]} 26. Ne3 {[%clk
0:01:16.5]} 26... Qf6 {[%clk 0:01:01.6]} 27. Nd5 {[%clk 0:01:14.6]} 27... Qd8
{[%clk 0:01:01]} 28. Qf4 {[%clk 0:01:08.8]} 28... Nd3 {[%clk 0:00:54.4]} 29. Qd2
{[%clk 0:00:52.5]} 29... Ne5 {[%clk 0:00:54.4]} 30. Qc2 {[%clk 0:00:47]} 30...
Qh4 {[%clk 0:00:47.8]} 31. h3 {[%clk 0:00:44.5]} 31... Qxc4 {[%clk 0:00:42.8]}
32. Qf5 {[%clk 0:00:35.1]} 32... Ng6 {[%clk 0:00:38.6]} 33. Nc7 {[%clk
0:00:30.8]} 33... Rf8 {[%clk 0:00:31.8]} 34. Rd5 {[%clk 0:00:24.2]} 34... b6
{[%clk 0:00:28.1]} 35. Rd7 {[%clk 0:00:19]} 35... Qc1+ {[%clk 0:00:22.1]} 36.
Kh2 {[%clk 0:00:19.2]} 36... Qf4+ {[%clk 0:00:16.3]} 37. Qxf4 {[%clk 0:00:19.2]}
37... Nxf4 {[%clk 0:00:17.2]} 38. g3 {[%clk 0:00:18.7]} 38... Ne6 {[%clk
0:00:16.4]} 39. Nd5 {[%clk 0:00:18.1]} 39... Rb8 {[%clk 0:00:15.3]} 40. Rd6
{[%clk 0:00:15.1]} 40... c4 {[%clk 0:00:14.4]} 41. Rc6 {[%clk 0:00:12.3]} 41...
Nc5 {[%clk 0:00:13.7]} 42. Nxb6 {[%clk 0:00:11.8]} 42... h6 {[%clk 0:00:05]} 43.
Rxc5 {[%clk 0:00:09.8]} 43... Rxb6 {[%clk 0:00:05.2]} 44. a4 {[%clk 0:00:10.4]}
44... Rf6 {[%clk 0:00:04.2]} 45. Rxc4 {[%clk 0:00:10.1]} 45... Rxf2+ {[%clk
0:00:04.2]} 46. Kg1 {[%clk 0:00:09]} 46... Rb2 {[%clk 0:00:04.7]} 47. Rc8+
{[%clk 0:00:05.4]} 47... Kh7 {[%clk 0:00:04.9]} 48. Ra8 {[%clk 0:00:06.1]} 48...
Rb1+ {[%clk 0:00:05.1]} 49. Kg2 {[%clk 0:00:05.5]} 49... Rb2+ {[%clk 0:00:05.3]}
50. Kf3 {[%clk 0:00:06]} 50... Rb3+ {[%clk 0:00:05.7]} 51. Kf2 {[%clk
0:00:05.8]} 51... Rb2+ {[%clk 0:00:06]} 52. Ke3 {[%clk 0:00:05.7]} 52... Rb3+
{[%clk 0:00:06.5]} 53. Kf2 {[%clk 0:00:05.7]} 53... Rb2+ {[%clk 0:00:06.8]} 54.
Kf1 {[%clk 0:00:05.9]} 54... Rb1+ {[%clk 0:00:07.2]} 55. Ke2 {[%clk 0:00:06.5]}
55... Rb2+ {[%clk 0:00:07.6]} 56. Kd1 {[%clk 0:00:06.9]} 56... Rb1+ {[%clk
0:00:06.6]} 57. Kc2 {[%clk 0:00:06.8]} 57... Rg1 {[%clk 0:00:06.3]} 58. Rxa5
{[%clk 0:00:07.2]} 58... Rxg3 {[%clk 0:00:06.6]} 59. b6 {[%clk 0:00:07]} 59...
Rg2+ {[%clk 0:00:03.6]} 60. Kb3 {[%clk 0:00:06]} 60... Rg3+ {[%clk 0:00:03.9]}
61. Kb4 {[%clk 0:00:05.9]} 61... Rg1 {[%clk 0:00:04.3]} 62. Rb5 {[%clk
0:00:05.7]} 62... Rb1+ {[%clk 0:00:02.3]} 63. Ka5 {[%clk 0:00:05.7]} 1-0